[Event "Late-Titled-Tuesday-Blitz-July-09-2024"]
[Site "Chess.com"]
[Date "2024.07.09"]
[Round "8"]
[White "Os55555"]
[Black "mortngabriel"]
[Result "0-1"]
[WhiteElo "2313"]
[BlackElo "2469"]
[TimeControl "180+1"]
[EndTime "15:26:30 PDT"]
[Termination "mortngabriel won by resignation"]

1. b3 {[%clk 0:03:00.9]} 1... d5 {[%clk 0:02:59.8]} 2. Bb2 {[%clk 0:02:59.3]}
2... Bf5 {[%clk 0:03:00.3]} 3. e3 {[%clk 0:02:58.1]} 3... e6 {[%clk 0:03:00.8]}
4. Nf3 {[%clk 0:02:57.4]} 4... Nf6 {[%clk 0:03:00]} 5. d3 {[%clk 0:02:56.8]}
5... h6 {[%clk 0:02:59.2]} 6. g3 {[%clk 0:02:57]} 6... Be7 {[%clk 0:02:59.1]} 7.
Bg2 {[%clk 0:02:57.4]} 7... O-O {[%clk 0:02:59.6]} 8. O-O {[%clk 0:02:57.8]}
8... a5 {[%clk 0:03:00.1]} 9. a3 {[%clk 0:02:56.7]} 9... c5 {[%clk 0:02:40.8]}
10. Nc3 {[%clk 0:02:40.4]} 10... Nc6 {[%clk 0:02:30.1]} 11. d4 {[%clk
0:02:28.7]} 11... cxd4 {[%clk 0:02:26.6]} 12. Nxd4 {[%clk 0:02:28.6]} 12... Nxd4
{[%clk 0:02:26.1]} 13. exd4 {[%clk 0:02:27.9]} 13... Rc8 {[%clk 0:02:23.5]} 14.
Rc1 {[%clk 0:02:22.3]} 14... Qd7 {[%clk 0:01:48.2]} 15. Qd2 {[%clk 0:02:18.7]}
15... b5 {[%clk 0:01:46.5]} 16. a4 {[%clk 0:02:13.8]} 16... b4 {[%clk
0:01:46.5]} 17. Nb5 {[%clk 0:02:06.9]} 17... Ne4 {[%clk 0:01:46.2]} 18. Bxe4
{[%clk 0:02:02.6]} 18... Bxe4 {[%clk 0:01:44.1]} 19. c3 {[%clk 0:01:34.4]} 19...
Bg5 {[%clk 0:01:41.7]} 20. f4 {[%clk 0:01:33.5]} 20... Be7 {[%clk 0:01:41.9]}
21. c4 {[%clk 0:01:23.8]} 21... dxc4 {[%clk 0:01:33.1]} 22. bxc4 {[%clk
0:01:24]} 22... Bb7 {[%clk 0:01:24]} 23. Rfd1 {[%clk 0:01:15.8]} 23... Rfd8
{[%clk 0:01:07.6]} 24. Qe3 {[%clk 0:01:01.4]} 24... Qc6 {[%clk 0:01:01.4]} 25.
d5 {[%clk 0:00:57.9]} 25... Bc5 {[%clk 0:00:56.4]} 26. Nd4 {[%clk 0:00:50.8]}
26... exd5 {[%clk 0:00:52.4]} 27. cxd5 {[%clk 0:00:45.1]} 27... Qxd5 {[%clk
0:00:51.5]} 0-1

[Event "Late-Titled-Tuesday-Blitz-July-09-2024"]
[Site "Chess.com"]
[Date "2024.07.09"]
[Round "8"]
[White "shirovin"]
[Black "TioCridineno"]
[Result "0-1"]
[WhiteElo "2086"]
[BlackElo "2433"]
[TimeControl "180+1"]
[EndTime "15:26:39 PDT"]
[Termination "TioCridineno won by checkmate"]

1. e4 {[%clk 0:03:00.9]} 1... c5 {[%clk 0:02:59.9]} 2. Nf3 {[%clk 0:03:00.2]}
2... Nc6 {[%clk 0:03:00.3]} 3. d4 {[%clk 0:02:59.7]} 3... cxd4 {[%clk
0:03:00.8]} 4. Nxd4 {[%clk 0:03:00.2]} 4... Nf6 {[%clk 0:03:01.4]} 5. Nc3 {[%clk
0:03:00]} 5... e5 {[%clk 0:03:01.8]} 6. Ndb5 {[%clk 0:03:00.2]} 6... d6 {[%clk
0:03:01.8]} 7. Bg5 {[%clk 0:02:59.3]} 7... a6 {[%clk 0:03:02]} 8. Na3 {[%clk
0:02:59.7]} 8... b5 {[%clk 0:03:02.1]} 9. Nab1 {[%clk 0:02:40.9]} 9... Be7
{[%clk 0:03:00.8]} 10. Bxf6 {[%clk 0:02:35.4]} 10... Bxf6 {[%clk 0:02:59.9]} 11.
Nd5 {[%clk 0:02:35.2]} 11... O-O {[%clk 0:02:58.1]} 12. a4 {[%clk 0:02:32.3]}
12... bxa4 {[%clk 0:02:57]} 13. Bc4 {[%clk 0:02:30.5]} 13... Bg5 {[%clk
0:02:54.5]} 14. O-O {[%clk 0:02:25.4]} 14... Kh8 {[%clk 0:02:54.5]} 15. Nbc3
{[%clk 0:02:11.3]} 15... f5 {[%clk 0:02:53]} 16. exf5 {[%clk 0:02:06.2]} 16...
Bxf5 {[%clk 0:02:51.3]} 17. Nxa4 {[%clk 0:01:57.3]} 17... Rb8 {[%clk 0:02:41.9]}
18. Bxa6 {[%clk 0:01:48.4]} 18... e4 {[%clk 0:02:38.7]} 19. Be2 {[%clk
0:01:42.8]} 19... Ne5 {[%clk 0:02:38]} 20. b4 {[%clk 0:01:31.1]} 20... Qe8
{[%clk 0:02:19.4]} 21. b5 {[%clk 0:01:17.3]} 21... Qg6 {[%clk 0:02:18.5]} 22.
Kh1 {[%clk 0:01:06.7]} 22... Qh6 {[%clk 0:02:16.9]} 23. Ne3 {[%clk 0:01:00]}
23... Bc8 {[%clk 0:01:54.3]} 24. Ra3 {[%clk 0:00:45.2]} 24... Nf3 {[%clk
0:01:29.5]} 25. Bxf3 {[%clk 0:00:19.5]} 25... exf3 {[%clk 0:01:29.5]} 26. g3
{[%clk 0:00:19.2]} 26... Rxb5 {[%clk 0:01:08.4]} 27. Rd3 {[%clk 0:00:17.9]}
27... Bxe3 {[%clk 0:01:02.1]} 28. Rxe3 {[%clk 0:00:15.3]} 28... Rh5 {[%clk
0:01:02.6]} 29. h4 {[%clk 0:00:13.9]} 29... Rxh4+ {[%clk 0:01:01.8]} 30. gxh4
{[%clk 0:00:12.9]} 30... Qxh4+ {[%clk 0:01:02]} 31. Kg1 {[%clk 0:00:13.3]} 31...
Qg4+ {[%clk 0:01:02.1]} 32. Kh2 {[%clk 0:00:04.4]} 32... Qg2# {[%clk 0:01:03]}
0-1

[Event "Late-Titled-Tuesday-Blitz-July-09-2024"]
[Site "Chess.com"]
[Date "2024.07.09"]
[Round "8"]
[White "ZakinIlay2306"]
[Black "Veleamater"]
[Result "0-1"]
[WhiteElo "2312"]
[BlackElo "2441"]
[TimeControl "180+1"]
[EndTime "15:26:54 PDT"]
[Termination "Veleamater won by checkmate"]

1. e4 {[%clk 0:03:00.9]} 1... d6 {[%clk 0:03:00.4]} 2. d4 {[%clk 0:03:00.2]}
2... g6 {[%clk 0:03:01.1]} 3. Nc3 {[%clk 0:02:59.8]} 3... Bg7 {[%clk 0:03:01.8]}
4. Be3 {[%clk 0:02:59.3]} 4... Nf6 {[%clk 0:03:02.5]} 5. f3 {[%clk 0:02:59]}
5... O-O {[%clk 0:03:01.5]} 6. h4 {[%clk 0:02:58.9]} 6... Nc6 {[%clk 0:03:01]}
7. Qd2 {[%clk 0:02:56.7]} 7... h5 {[%clk 0:03:00.1]} 8. Nh3 {[%clk 0:02:56.5]}
8... e5 {[%clk 0:03:00.3]} 9. d5 {[%clk 0:02:53.6]} 9... Nd4 {[%clk 0:02:58.6]}
10. Ng5 {[%clk 0:02:50.7]} 10... c5 {[%clk 0:02:57]} 11. Nd1 {[%clk 0:02:42.8]}
11... Bd7 {[%clk 0:02:50.5]} 12. c3 {[%clk 0:02:40.9]} 12... Nb5 {[%clk
0:02:50.6]} 13. a4 {[%clk 0:02:37.6]} 13... Nc7 {[%clk 0:02:50.3]} 14. c4 {[%clk
0:02:37.7]} 14... a6 {[%clk 0:02:49.3]} 15. a5 {[%clk 0:02:37.4]} 15... Rb8
{[%clk 0:02:49.5]} 16. Nc3 {[%clk 0:02:37.3]} 16... b5 {[%clk 0:02:48.7]} 17.
axb6 {[%clk 0:02:37]} 17... Rxb6 {[%clk 0:02:48.7]} 18. Bd3 {[%clk 0:02:34.1]}
18... Qb8 {[%clk 0:02:48.7]} 19. Nd1 {[%clk 0:02:32.4]} 19... Qb7 {[%clk
0:02:45.3]} 20. Qc2 {[%clk 0:02:21.6]} 20... Rb8 {[%clk 0:02:44.2]} 21. Bc1
{[%clk 0:02:21.7]} 21... Rb3 {[%clk 0:02:42.7]} 22. O-O {[%clk 0:02:20.1]} 22...
Qc8 {[%clk 0:02:22.5]} 23. Nc3 {[%clk 0:02:17.5]} 23... Nh7 {[%clk 0:02:15.8]}
24. Nxh7 {[%clk 0:02:10.8]} 24... Kxh7 {[%clk 0:02:15.4]} 25. Qe2 {[%clk
0:01:40.6]} 25... Qd8 {[%clk 0:02:06.9]} 26. g3 {[%clk 0:01:35.1]} 26... Bf6
{[%clk 0:02:04.3]} 27. Bc2 {[%clk 0:01:33]} 27... R3b4 {[%clk 0:01:58.4]} 28. b3
{[%clk 0:01:17.7]} 28... Kg7 {[%clk 0:01:54.6]} 29. Qd2 {[%clk 0:01:14.7]} 29...
Kg8 {[%clk 0:01:48.3]} 30. Ra3 {[%clk 0:00:52.9]} 30... Bg7 {[%clk 0:01:45.4]}
31. Kh2 {[%clk 0:00:50.6]} 31... Qe7 {[%clk 0:01:32.7]} 32. Qf2 {[%clk
0:00:49.5]} 32... Rf8 {[%clk 0:01:32.4]} 33. Be3 {[%clk 0:00:33.8]} 33... f5
{[%clk 0:01:32.6]} 34. Qd2 {[%clk 0:00:24.7]} 34... f4 {[%clk 0:01:32.5]} 35.
Bxc5 {[%clk 0:00:24.6]} 35... fxg3+ {[%clk 0:01:17.5]} 36. Kxg3 {[%clk
0:00:17.3]} 36... dxc5 {[%clk 0:01:13.3]} 37. d6 {[%clk 0:00:17.5]} 37... Qe6
{[%clk 0:01:13.5]} 38. dxc7 {[%clk 0:00:17.3]} 38... Qh3+ {[%clk 0:01:11.2]} 39.
Kf2 {[%clk 0:00:17.3]} 39... Qxf3+ {[%clk 0:01:10.5]} 40. Kg1 {[%clk 0:00:16.9]}
40... Qxf1+ {[%clk 0:01:10.5]} 41. Kh2 {[%clk 0:00:17.4]} 41... Rf2+ {[%clk
0:01:09.9]} 42. Kg3 {[%clk 0:00:16.9]} 42... Rxd2 {[%clk 0:01:08.7]} 43. c8=Q+
{[%clk 0:00:15.6]} 43... Bxc8 {[%clk 0:01:08.1]} 44. Nd5 {[%clk 0:00:16]} 44...
Qf2# {[%clk 0:01:08.2]} 0-1

[Event "Late-Titled-Tuesday-Blitz-July-09-2024"]
[Site "Chess.com"]
[Date "2024.07.09"]
[Round "8"]
[White "vova-79"]
[Black "pinelone"]
[Result "0-1"]
[WhiteElo "2463"]
[BlackElo "2392"]
[TimeControl "180+1"]
[EndTime "15:26:59 PDT"]
[Termination "pinelone won by resignation"]

1. d4 {[%clk 0:02:54.4]} 1... Nf6 {[%clk 0:02:59.9]} 2. c4 {[%clk 0:02:53.5]}
2... e6 {[%clk 0:03:00.2]} 3. g3 {[%clk 0:02:52.7]} 3... c5 {[%clk 0:02:59.2]}
4. d5 {[%clk 0:02:49.7]} 4... exd5 {[%clk 0:02:59]} 5. cxd5 {[%clk 0:02:50]}
5... d6 {[%clk 0:02:59.6]} 6. Nf3 {[%clk 0:02:49.9]} 6... g6 {[%clk 0:02:59]} 7.
Nc3 {[%clk 0:02:49.8]} 7... Bg7 {[%clk 0:02:59.4]} 8. Bg2 {[%clk 0:02:50.4]}
8... O-O {[%clk 0:02:59.9]} 9. O-O {[%clk 0:02:51]} 9... Bf5 {[%clk 0:02:50.1]}
10. Nd2 {[%clk 0:02:13.9]} 10... Na6 {[%clk 0:02:46.4]} 11. e4 {[%clk
0:01:58.6]} 11... Bg4 {[%clk 0:02:42.5]} 12. f3 {[%clk 0:01:58.3]} 12... Bd7
{[%clk 0:02:41.5]} 13. a4 {[%clk 0:01:56.9]} 13... Nb4 {[%clk 0:02:40.7]} 14.
Nc4 {[%clk 0:01:55.9]} 14... Ne8 {[%clk 0:02:39.2]} 15. h3 {[%clk 0:01:44.4]}
15... b6 {[%clk 0:02:38.3]} 16. Kh2 {[%clk 0:01:42.7]} 16... f5 {[%clk 0:02:19]}
17. f4 {[%clk 0:01:35.4]} 17... fxe4 {[%clk 0:02:08.4]} 18. Nxe4 {[%clk
0:01:36.3]} 18... Bf5 {[%clk 0:02:00.5]} 19. g4 {[%clk 0:01:22.4]} 19... Bxe4
{[%clk 0:02:00.2]} 20. Bxe4 {[%clk 0:01:22.8]} 20... Nf6 {[%clk 0:01:56.7]} 21.
Bg2 {[%clk 0:01:19.7]} 21... Re8 {[%clk 0:01:52.1]} 22. f5 {[%clk 0:01:12]}
22... Ne4 {[%clk 0:01:46.7]} 23. fxg6 {[%clk 0:01:08.4]} 23... hxg6 {[%clk
0:01:44.4]} 24. Ra3 {[%clk 0:01:03.5]} 24... Qe7 {[%clk 0:01:37.9]} 25. Bf4
{[%clk 0:00:53.3]} 25... g5 {[%clk 0:01:11]} 26. Bc1 {[%clk 0:00:30.7]} 26...
Be5+ {[%clk 0:01:08]} 27. Nxe5 {[%clk 0:00:26.9]} 27... Qxe5+ {[%clk 0:01:07.8]}
28. Kg1 {[%clk 0:00:27.6]} 28... Nxd5 {[%clk 0:00:53.2]} 29. Re1 {[%clk
0:00:17.2]} 29... Ndf6 {[%clk 0:00:50.1]} 30. Bxg5 {[%clk 0:00:05.9]} 30... Qxg5
{[%clk 0:00:40.9]} 0-1

[Event "Late-Titled-Tuesday-Blitz-July-09-2024"]
[Site "Chess.com"]
[Date "2024.07.09"]
[Round "8"]
[White "KaydenTroffChess"]
[Black "brm72"]
[Result "1-0"]
[WhiteElo "2873"]
[BlackElo "2653"]
[TimeControl "180+1"]
[EndTime "15:27:03 PDT"]
[Termination "KaydenTroffChess won by resignation"]

1. d4 {[%clk 0:03:00.9]} 1... Nf6 {[%clk 0:03:00.1]} 2. Nf3 {[%clk 0:03:00.9]}
2... e6 {[%clk 0:02:59.9]} 3. Bf4 {[%clk 0:03:00.2]} 3... b6 {[%clk 0:02:57.4]}
4. e3 {[%clk 0:02:59.6]} 4... Bb7 {[%clk 0:02:58]} 5. Nbd2 {[%clk 0:02:56]} 5...
d6 {[%clk 0:02:58]} 6. a4 {[%clk 0:02:55]} 6... a6 {[%clk 0:02:57.3]} 7. a5
{[%clk 0:02:55.3]} 7... b5 {[%clk 0:02:57]} 8. c4 {[%clk 0:02:55.5]} 8... bxc4
{[%clk 0:02:57.2]} 9. Bxc4 {[%clk 0:02:50.3]} 9... Nbd7 {[%clk 0:02:55.8]} 10.
O-O {[%clk 0:02:38.9]} 10... Be7 {[%clk 0:02:48.5]} 11. b4 {[%clk 0:02:38.7]}
11... Nh5 {[%clk 0:02:47.1]} 12. Bg3 {[%clk 0:02:37.4]} 12... Nxg3 {[%clk
0:02:46.9]} 13. fxg3 {[%clk 0:02:37.4]} 13... O-O {[%clk 0:02:40]} 14. Qb3
{[%clk 0:02:31.3]} 14... Kh8 {[%clk 0:02:32.1]} 15. b5 {[%clk 0:02:24.5]} 15...
axb5 {[%clk 0:02:27.4]} 16. Qxb5 {[%clk 0:02:25.2]} 16... Ba6 {[%clk 0:02:24.3]}
17. Qc6 {[%clk 0:02:22]} 17... Bxc4 {[%clk 0:02:19]} 18. Nxc4 {[%clk 0:02:21.5]}
18... Ra7 {[%clk 0:01:58.3]} 19. Rfb1 {[%clk 0:02:16.7]} 19... Nb8 {[%clk
0:01:47.1]} 20. Qb5 {[%clk 0:02:14.3]} 20... Na6 {[%clk 0:01:44.1]} 21. Nb6
{[%clk 0:01:59.8]} 21... c5 {[%clk 0:01:30.7]} 22. dxc5 {[%clk 0:01:48.2]} 22...
Bf6 {[%clk 0:01:15.4]} 23. Nd4 {[%clk 0:01:37.5]} 23... Bxd4 {[%clk 0:01:14.7]}
24. exd4 {[%clk 0:01:37.5]} 24... dxc5 {[%clk 0:01:15.3]} 25. dxc5 {[%clk
0:01:36.8]} 25... Qd4+ {[%clk 0:01:15.8]} 26. Kh1 {[%clk 0:01:37]} 26... Qxc5
{[%clk 0:01:16.1]} 27. Qa4 {[%clk 0:01:33.6]} 27... Qe7 {[%clk 0:01:11]} 28. Qc4
{[%clk 0:01:21.8]} 28... Qc7 {[%clk 0:01:05.7]} 29. Qd4 {[%clk 0:01:17.3]} 29...
h6 {[%clk 0:01:02.4]} 30. Rc1 {[%clk 0:01:15.1]} 30... Qd8 {[%clk 0:00:47.4]}
31. Qe3 {[%clk 0:01:08.8]} 31... Qf6 {[%clk 0:00:39.5]} 32. Nd5 {[%clk
0:01:02.1]} 32... exd5 {[%clk 0:00:35.9]} 33. Qxa7 {[%clk 0:01:01.1]} 33... Re8
{[%clk 0:00:34.9]} 34. Qb6 {[%clk 0:01:00.1]} 34... Re6 {[%clk 0:00:34.3]} 35.
Qb5 {[%clk 0:00:54.2]} 35... Rd6 {[%clk 0:00:31.2]} 36. Rf1 {[%clk 0:00:53.7]}
36... Qc3 {[%clk 0:00:23.9]} 37. Rac1 {[%clk 0:00:50.4]} 37... Qd2 {[%clk
0:00:22.6]} 38. Qe8+ {[%clk 0:00:38.1]} 38... Kh7 {[%clk 0:00:22.1]} 39. Qxf7
{[%clk 0:00:38.1]} 1-0

[Event "Late-Titled-Tuesday-Blitz-July-09-2024"]
[Site "Chess.com"]
[Date "2024.07.09"]
[Round "8"]
[White "jbking07"]
[Black "yaguigor"]
[Result "1-0"]
[WhiteElo "2477"]
[BlackElo "2613"]
[TimeControl "180+1"]
[EndTime "15:27:04 PDT"]
[Termination "jbking07 won by checkmate"]

1. e4 {[%clk 0:03:00.9]} 1... e5 {[%clk 0:02:59]} 2. Nf3 {[%clk 0:02:59.9]} 2...
Nc6 {[%clk 0:02:58.3]} 3. d4 {[%clk 0:02:59.9]} 3... exd4 {[%clk 0:02:57.8]} 4.
Nxd4 {[%clk 0:03:00.8]} 4... Nf6 {[%clk 0:02:56.9]} 5. f3 {[%clk 0:02:56.5]}
5... Nxe4 {[%clk 0:02:25.4]} 6. fxe4 {[%clk 0:02:55.7]} 6... Qh4+ {[%clk
0:02:24.6]} 7. g3 {[%clk 0:02:55.4]} 7... Qxe4+ {[%clk 0:02:19.2]} 8. Qe2 {[%clk
0:02:55.1]} 8... Qxe2+ {[%clk 0:02:14.6]} 9. Nxe2 {[%clk 0:02:54.4]} 9... Bc5
{[%clk 0:02:13.7]} 10. Nbc3 {[%clk 0:02:52.8]} 10... Ne7 {[%clk 0:02:13]} 11.
Bf4 {[%clk 0:02:52.7]} 11... d6 {[%clk 0:02:12.4]} 12. O-O-O {[%clk 0:02:52.1]}
12... Bg4 {[%clk 0:02:09.3]} 13. Bg2 {[%clk 0:02:50.4]} 13... O-O-O {[%clk
0:02:08.2]} 14. h3 {[%clk 0:02:50.3]} 14... Bh5 {[%clk 0:02:07.5]} 15. g4 {[%clk
0:02:47.7]} 15... Bg6 {[%clk 0:02:07.4]} 16. Rhf1 {[%clk 0:02:41.9]} 16... a6
{[%clk 0:02:03.6]} 17. Ng3 {[%clk 0:02:39.2]} 17... c6 {[%clk 0:01:56.7]} 18. h4
{[%clk 0:02:36.2]} 18... h6 {[%clk 0:01:54.6]} 19. Nce4 {[%clk 0:02:34.9]} 19...
Nd5 {[%clk 0:01:47.8]} 20. Nxc5 {[%clk 0:02:28.7]} 20... Nxf4 {[%clk 0:01:46.9]}
21. Rxf4 {[%clk 0:02:28]} 21... dxc5 {[%clk 0:01:46.5]} 22. Rxd8+ {[%clk
0:02:27.1]} 22... Kxd8 {[%clk 0:01:45.5]} 23. h5 {[%clk 0:02:26.9]} 23... Bh7
{[%clk 0:01:44.8]} 24. Rxf7 {[%clk 0:02:26.8]} 24... Re8 {[%clk 0:01:37.5]} 25.
Kd2 {[%clk 0:02:21.7]} 25... Re7 {[%clk 0:01:20.1]} 26. Rxe7 {[%clk 0:02:19.1]}
26... Kxe7 {[%clk 0:01:21]} 27. Be4 {[%clk 0:02:18.7]} 27... Bg8 {[%clk
0:01:20.5]} 28. a4 {[%clk 0:02:18.4]} 28... a5 {[%clk 0:01:19.3]} 29. Nf5+
{[%clk 0:02:14.8]} 29... Kf6 {[%clk 0:01:16.5]} 30. Nd6 {[%clk 0:02:14.7]} 30...
Ke5 {[%clk 0:01:14.5]} 31. Nxb7 {[%clk 0:02:12.6]} 31... Kxe4 {[%clk 0:01:14.5]}
32. Nxc5+ {[%clk 0:02:12.9]} 32... Kf4 {[%clk 0:01:13.1]} 33. c3 {[%clk
0:02:06.2]} 33... Kxg4 {[%clk 0:01:12.5]} 34. b4 {[%clk 0:02:06.3]} 34... axb4
{[%clk 0:01:11.2]} 35. cxb4 {[%clk 0:02:07.2]} 35... Kxh5 {[%clk 0:01:10.1]} 36.
a5 {[%clk 0:02:04.3]} 36... Bc4 {[%clk 0:01:08.5]} 37. a6 {[%clk 0:02:01.4]}
37... Bxa6 {[%clk 0:01:08.4]} 38. Nxa6 {[%clk 0:02:01.8]} 38... Kg4 {[%clk
0:01:09.1]} 39. Nb8 {[%clk 0:02:01.4]} 39... h5 {[%clk 0:01:08.3]} 40. Nxc6
{[%clk 0:02:02]} 40... h4 {[%clk 0:01:08.3]} 41. Ne5+ {[%clk 0:02:01.7]} 41...
Kg3 {[%clk 0:01:07.8]} 42. Ke3 {[%clk 0:01:58.5]} 42... h3 {[%clk 0:01:06.8]}
43. Nf3 {[%clk 0:01:57.6]} 43... Kg2 {[%clk 0:00:54.1]} 44. b5 {[%clk
0:01:57.1]} 44... g5 {[%clk 0:00:53]} 45. b6 {[%clk 0:01:49.5]} 45... g4 {[%clk
0:00:52.4]} 46. b7 {[%clk 0:01:43.9]} 46... gxf3 {[%clk 0:00:52.4]} 47. b8=Q
{[%clk 0:01:43.8]} 47... h2 {[%clk 0:00:53.2]} 48. Qb2+ {[%clk 0:01:08]} 48...
Kh3 {[%clk 0:00:51.7]} 49. Qc1 {[%clk 0:00:48.7]} 49... Kg2 {[%clk 0:00:50.8]}
50. Qd2+ {[%clk 0:00:48.7]} 50... Kh3 {[%clk 0:00:50.9]} 51. Qe1 {[%clk
0:00:47.7]} 51... Kg2 {[%clk 0:00:47.9]} 52. Qf2+ {[%clk 0:00:43.9]} 52... Kh1
{[%clk 0:00:45.6]} 53. Qf1# {[%clk 0:00:44.2]} 1-0

[Event "Late-Titled-Tuesday-Blitz-July-09-2024"]
[Site "Chess.com"]
[Date "2024.07.09"]
[Round "8"]
[White "Boundless_Strike"]
[Black "legendisback1"]
[Result "0-1"]
[WhiteElo "2812"]
[BlackElo "3027"]
[TimeControl "180+1"]
[EndTime "15:27:16 PDT"]
[Termination "legendisback1 won on time"]

1. d4 {[%clk 0:03:00.9]} 1... g6 {[%clk 0:03:00.9]} 2. h4 {[%clk 0:02:56.4]}
2... Bg7 {[%clk 0:03:01.8]} 3. h5 {[%clk 0:02:56]} 3... d5 {[%clk 0:02:58.5]} 4.
h6 {[%clk 0:02:50.5]} 4... Bf6 {[%clk 0:02:58.1]} 5. Nc3 {[%clk 0:02:49.1]} 5...
Nc6 {[%clk 0:02:47.6]} 6. Nf3 {[%clk 0:02:46.6]} 6... Bg4 {[%clk 0:02:46.9]} 7.
e3 {[%clk 0:02:46.6]} 7... e6 {[%clk 0:02:40.6]} 8. Be2 {[%clk 0:02:43.2]} 8...
Nge7 {[%clk 0:02:36.2]} 9. Nd2 {[%clk 0:02:33.3]} 9... Bxe2 {[%clk 0:02:28.3]}
10. Qxe2 {[%clk 0:02:31.1]} 10... O-O {[%clk 0:02:29.2]} 11. Nf3 {[%clk
0:02:18.1]} 11... e5 {[%clk 0:02:20.7]} 12. dxe5 {[%clk 0:02:14.5]} 12... Nxe5
{[%clk 0:02:21.6]} 13. Nxe5 {[%clk 0:02:13.9]} 13... Bxe5 {[%clk 0:02:22.5]} 14.
Bd2 {[%clk 0:02:14.5]} 14... Re8 {[%clk 0:02:20.8]} 15. O-O-O {[%clk 0:02:13.8]}
15... c6 {[%clk 0:02:20.8]} 16. g4 {[%clk 0:02:05.4]} 16... Qb6 {[%clk
0:02:10.3]} 17. f4 {[%clk 0:02:01]} 17... Bh8 {[%clk 0:02:09.8]} 18. Qf3 {[%clk
0:01:57.2]} 18... Qa6 {[%clk 0:02:03]} 19. Kb1 {[%clk 0:01:53.8]} 19... f5
{[%clk 0:01:50.3]} 20. gxf5 {[%clk 0:01:48.7]} 20... Nxf5 {[%clk 0:01:51.2]} 21.
e4 {[%clk 0:01:46.5]} 21... dxe4 {[%clk 0:01:42]} 22. Nxe4 {[%clk 0:01:43.9]}
22... Qb5 {[%clk 0:01:42.4]} 23. Bc3 {[%clk 0:01:39.3]} 23... Rxe4 {[%clk
0:01:41.9]} 24. Bxh8 {[%clk 0:01:33.3]} 24... Re3 {[%clk 0:01:41]} 25. Qf2
{[%clk 0:01:11.4]} 25... Kxh8 {[%clk 0:01:39.8]} 26. Rd7 {[%clk 0:01:10.9]}
26... Rae8 {[%clk 0:01:38.1]} 27. a3 {[%clk 0:01:05.7]} 27... Re2 {[%clk
0:01:31.8]} 28. Qf3 {[%clk 0:01:04]} 28... Qc4 {[%clk 0:01:18.3]} 29. Rc1 {[%clk
0:00:59.4]} 29... Kg8 {[%clk 0:01:13.6]} 30. a4 {[%clk 0:00:52.9]} 30... R2e7
{[%clk 0:01:03]} 31. Rd2 {[%clk 0:00:46.2]} 31... Re1 {[%clk 0:00:54.7]} 32.
Rdd1 {[%clk 0:00:45.6]} 32... Rxd1 {[%clk 0:00:50.5]} 33. Rxd1 {[%clk
0:00:46.1]} 33... Ne3 {[%clk 0:00:41.6]} 0-1

[Event "Late-Titled-Tuesday-Blitz-July-09-2024"]
[Site "Chess.com"]
[Date "2024.07.09"]
[Round "8"]
[White "Jospem"]
[Black "saikrishnaReturns"]
[Result "1-0"]
[WhiteElo "3095"]
[BlackElo "2788"]
[TimeControl "180+1"]
[EndTime "15:27:16 PDT"]
[Termination "Jospem won by checkmate"]

1. e4 {[%clk 0:03:00.9]} 1... e5 {[%clk 0:02:59]} 2. Nf3 {[%clk 0:02:53.1]} 2...
Nc6 {[%clk 0:02:59.1]} 3. Nc3 {[%clk 0:02:53.3]} 3... Nf6 {[%clk 0:02:58.9]} 4.
h3 {[%clk 0:02:53.6]} 4... Bb4 {[%clk 0:02:55.2]} 5. a3 {[%clk 0:02:52.9]} 5...
Bxc3 {[%clk 0:02:51.5]} 6. dxc3 {[%clk 0:02:53.8]} 6... O-O {[%clk 0:02:39]} 7.
Bg5 {[%clk 0:02:50.8]} 7... h6 {[%clk 0:02:37]} 8. Bh4 {[%clk 0:02:49]} 8... g5
{[%clk 0:02:18]} 9. Nxg5 {[%clk 0:02:47.6]} 9... hxg5 {[%clk 0:02:18.9]} 10.
Bxg5 {[%clk 0:02:48.4]} 10... Kg7 {[%clk 0:02:18.6]} 11. Bd3 {[%clk 0:02:46.5]}
11... Qe8 {[%clk 0:02:15.4]} 12. Qd2 {[%clk 0:02:45]} 12... Rh8 {[%clk
0:02:12.1]} 13. O-O-O {[%clk 0:02:44]} 13... d6 {[%clk 0:02:07.6]} 14. Rdf1
{[%clk 0:02:43.8]} 14... Qe6 {[%clk 0:01:57.7]} 15. Kb1 {[%clk 0:02:40.9]} 15...
Nh7 {[%clk 0:01:53]} 16. Be3 {[%clk 0:02:41]} 16... Na5 {[%clk 0:01:32]} 17. f4
{[%clk 0:02:40.5]} 17... Nc4 {[%clk 0:01:29.8]} 18. Qf2 {[%clk 0:02:38.4]} 18...
Nxe3 {[%clk 0:01:29.4]} 19. Qxe3 {[%clk 0:02:39.3]} 19... exf4 {[%clk
0:01:18.9]} 20. Rxf4 {[%clk 0:02:40.2]} 20... Nf8 {[%clk 0:01:00.9]} 21. Rhf1
{[%clk 0:02:39.1]} 21... Ng6 {[%clk 0:01:01.1]} 22. Qd4+ {[%clk 0:02:34.4]}
22... Ne5 {[%clk 0:00:59.1]} 23. b3 {[%clk 0:02:12.6]} 23... c5 {[%clk
0:00:45.6]} 24. Rxf7+ {[%clk 0:02:10.5]} 24... Qxf7 {[%clk 0:00:42.5]} 25. Rxf7+
{[%clk 0:02:09.5]} 25... Kxf7 {[%clk 0:00:42.7]} 26. Qxd6 {[%clk 0:02:09.8]}
26... Re8 {[%clk 0:00:41.7]} 27. Qxc5 {[%clk 0:02:08.2]} 27... Bd7 {[%clk
0:00:29.7]} 28. Be2 {[%clk 0:02:07.2]} 28... Re6 {[%clk 0:00:22.8]} 29. Qf2+
{[%clk 0:02:02.3]} 29... Ke7 {[%clk 0:00:21.9]} 30. h4 {[%clk 0:01:58]} 30...
Bc6 {[%clk 0:00:21.6]} 31. h5 {[%clk 0:01:57.6]} 31... Rf8 {[%clk 0:00:17.5]}
32. Qc5+ {[%clk 0:01:56.6]} 32... Ke8 {[%clk 0:00:15.9]} 33. h6 {[%clk 0:01:53]}
33... Nd7 {[%clk 0:00:16.2]} 34. Bh5+ {[%clk 0:01:51.8]} 34... Kd8 {[%clk
0:00:12.8]} 35. Qg5+ {[%clk 0:01:52.7]} 35... Kc7 {[%clk 0:00:11.3]} 36. h7
{[%clk 0:01:52.9]} 36... Nf6 {[%clk 0:00:09.9]} 37. Qg7+ {[%clk 0:01:51.5]}
37... Nd7 {[%clk 0:00:08.5]} 38. Qxf8 {[%clk 0:01:48]} 38... Nxf8 {[%clk
0:00:09.4]} 39. h8=Q {[%clk 0:01:47.7]} 39... Nd7 {[%clk 0:00:10]} 40. Bf3
{[%clk 0:01:45.2]} 40... Bxe4 {[%clk 0:00:10]} 41. Qh2+ {[%clk 0:01:44.5]} 41...
Kc6 {[%clk 0:00:10]} 42. Qh3 {[%clk 0:01:43.1]} 42... Re7 {[%clk 0:00:08.6]} 43.
Qh4 {[%clk 0:01:41.6]} 43... Bxf3 {[%clk 0:00:04.7]} 44. Qxe7 {[%clk 0:01:40.7]}
44... Bxg2 {[%clk 0:00:05.1]} 45. Qe6+ {[%clk 0:01:41.1]} 45... Kc7 {[%clk
0:00:05.3]} 46. Qg4 {[%clk 0:01:41]} 46... Bc6 {[%clk 0:00:06.2]} 47. Qf4+
{[%clk 0:01:41.5]} 47... Kc8 {[%clk 0:00:06.4]} 48. c4 {[%clk 0:01:42.4]} 48...
Kd8 {[%clk 0:00:06.6]} 49. b4 {[%clk 0:01:42.7]} 49... a6 {[%clk 0:00:07.1]} 50.
Qg5+ {[%clk 0:01:42.9]} 50... Kc8 {[%clk 0:00:07.4]} 51. b5 {[%clk 0:01:43.8]}
51... axb5 {[%clk 0:00:07.3]} 52. cxb5 {[%clk 0:01:44.7]} 52... Be4 {[%clk
0:00:07.9]} 53. Qe7 {[%clk 0:01:43.3]} 53... Bd5 {[%clk 0:00:07.4]} 54. Qd6
{[%clk 0:01:43.5]} 54... Be4 {[%clk 0:00:06.2]} 55. a4 {[%clk 0:01:43.4]} 55...
Kd8 {[%clk 0:00:05.7]} 56. a5 {[%clk 0:01:43.6]} 56... Ke8 {[%clk 0:00:05.1]}
57. Kb2 {[%clk 0:01:43.5]} 57... Kd8 {[%clk 0:00:05.1]} 58. c4 {[%clk 0:01:44]}
58... Kc8 {[%clk 0:00:04.9]} 59. Kc3 {[%clk 0:01:43]} 59... Kd8 {[%clk
0:00:05.2]} 60. Kb4 {[%clk 0:01:43.6]} 60... Kc8 {[%clk 0:00:05.2]} 61. Qe7
{[%clk 0:01:43.1]} 61... Bf3 {[%clk 0:00:04.8]} 62. b6 {[%clk 0:01:43]} 62...
Nb8 {[%clk 0:00:02.4]} 63. Qe8# {[%clk 0:01:42.5]} 1-0